bitfinex-derivatives/quotes_BTCF0:USTF0_20250703
["timestamp","ask_amount","ask_price","bid_price","bid_amount"]
[1751537351606,1.13269615,109920.0,109910.0,0.00281959]
[1751537352001,0.64129745,109920.0,109910.0,0.00281959]
[1751537352202,0.8869968,109920.0,109910.0,0.00281959]
[1751537352404,0.8879968,109920.0,109910.0,0.00381959]
[1751537353300,1.13369615,109920.0,109910.0,0.00381959]
[1751537354201,0.8879968,109920.0,109910.0,0.00381959]
[1751537354999,0.64229745,109920.0,109910.0,0.19994655]
[1751537355201,0.57759745,109920.0,109910.0,0.27994655]
[1751537355403,0.57759745,109920.0,109910.0,0.37604655]
[1751537356202,0.8232968,109920.0,109910.0,0.37604655]
[1751537356608,0.57759745,109920.0,109910.0,0.37604655]
[1751537356907,0.8232968,109920.0,109910.0,0.37604655]
[1751537357608,0.8232968,109920.0,109910.0,0.19414065]
[1751537357809,0.8232968,109920.0,109910.0,0.16214065]
[1751537358007,0.8232968,109920.0,109910.0,0.13054065]
[1751537358008,0.8539968,109920.0,109910.0,0.13054065]
[1751537358205,0.8867968,109920.0,109910.0,0.13054065]
[1751537358401,1.13249615,109920.0,109910.0,0.13054065]
[1751537358610,0.8867968,109920.0,109910.0,0.13054065]
[1751537360009,0.8867968,109920.0,109910.0,0.31244655]
[1751537361314,0.8867968,109920.0,109910.0,0.13054065]
[1751537361607,0.8867968,109920.0,109910.0,0.31244655]
[1751537363210,0.8867968,109920.0,109910.0,0.34554655]
[1751537364307,0.8867968,109920.0,109910.0,0.33132549]
[1751537364509,0.8867968,109920.0,109910.0,0.3455368]
[1751537364911,0.8867968,109920.0,109910.0,0.1636309]
[1751537365711,0.8867968,109920.0,109910.0,0.3455367]
[1751537366514,0.8867968,109920.0,109910.0,0.1636309]
[1751537367011,0.8867968,109920.0,109910.0,0.3455368]
[1751537368207,0.8867968,109920.0,109910.0,0.1636309]
[1751537368910,0.8867968,109920.0,109910.0,0.0180309]
[1751537368911,1.13249615,109920.0,109910.0,0.0180309]
[1751537370209,0.181939,109890.0,109880.0,0.0327]
[1751537370409,0.99742116,109890.0,109880.0,0.13]
[1751537370615,1.09152116,109890.0,109880.0,0.13]
[1751537370914,1.10057647,109890.0,109880.0,0.13]
[1751537371613,1.10057647,109890.0,109880.0,0.133]
[1751537372109,1.09252116,109890.0,109880.0,0.135]
[1751537372414,0.84682181,109890.0,109880.0,0.1676]
[1751537372915,0.85605503,109890.0,109880.0,0.1676]
[1751537373412,0.84682181,109890.0,109880.0,0.1676]
[1751537375215,0.75272181,109890.0,109880.0,0.3495555]
[1751537375414,0.75272181,109890.0,109880.0,0.3803555]
[1751537375717,0.78552181,109890.0,109880.0,0.3495555]
[1751537376219,0.81752181,109890.0,109880.0,0.3495555]
[1751537376414,0.81752181,109890.0,109880.0,0.135]
[1751537376807,0.81752181,109890.0,109880.0,0.3169555]
[1751537377515,0.81752181,109890.0,109880.0,0.4869555]
[1751537377814,0.82685755,109890.0,109880.0,0.4869555]
[1751537378015,0.57182246,109890.0,109880.0,0.2269555]
[1751537378215,0.57182246,109890.0,109880.0,0.2916555]
[1751537378216,0.82352181,109890.0,109880.0,0.2916555]
[1751537379618,0.82352181,109890.0,109880.0,0.2886555]
[1751537379814,0.82652181,109890.0,109880.0,0.2886555]
[1751537380123,0.77084629,109890.0,109880.0,0.2886555]
[1751537380416,0.76784629,109890.0,109880.0,0.2886555]
[1751537380615,0.79292181,109890.0,109880.0,0.2886555]
[1751537381511,0.79292181,109890.0,109880.0,0.80515485]
[1751537381512,0.34602246,109890.0,109880.0,0.80515485]
[1751537381711,0.18602246,109890.0,109880.0,0.80515485]
[1751537382016,0.24602246,109890.0,109880.0,0.81903369]
[1751537382215,0.18602246,109890.0,109880.0,0.81903369]
[1751537382414,0.25602246,109890.0,109880.0,0.81903369]
[1751537382613,0.18602246,109890.0,109880.0,0.81903369]
[1751537382919,0.1919389,109890.0,109880.0,0.846249]
[1751537384218,0.01,109890.0,109880.0,0.846249]
[1751537384620,0.01,109890.0,109880.0,0.88253608]
[1751537385421,0.01,109890.0,109880.0,0.846249]
[1751537385626,0.01,109890.0,109880.0,0.88253608]
[1751537385828,0.01,109890.0,109880.0,0.84601724]
[1751537386221,0.01,109890.0,109880.0,0.88230432]
[1751537386419,0.01,109890.0,109880.0,0.81880193]
[1751537388818,0.01,109890.0,109880.0,0.57310258]
[1751537389021,0.01,109890.0,109880.0,0.81880193]
[1751537389224,0.01,109890.0,109880.0,1.51802524]
[1751537390426,0.01,109890.0,109880.0,1.50437816]
[1751537391528,0.01,109890.0,109880.0,1.19437816]
[1751537392123,0.01,109890.0,109880.0,1.48687816]
[1751537392629,0.01,109890.0,109880.0,1.30487016]
[1751537395333,0.01,109890.0,109880.0,1.29487016]
[1751537396631,0.01,109890.0,109880.0,1.30394193]
[1751537398030,0.191939,109890.0,109880.0,0.88144193]
[1751537398334,0.191939,109890.0,109880.0,0.84144193]
[1751537399329,0.191939,109890.0,109880.0,0.85779293]
[1751537402936,0.01,109890.0,109880.0,1.22779293]
[1751537403140,0.01,109890.0,109880.0,1.24779293]
[1751537403436,0.01,109890.0,109880.0,1.98614382]
[1751537403740,0.01,109890.0,109880.0,2.25428737]
[1751537404235,0.01,109890.0,109880.0,2.00428737]
[1751537404738,0.01,109890.0,109880.0,1.9317132]
[1751537405233,0.01,109890.0,109880.0,2.00428737]
[1751537406037,0.01,109890.0,109880.0,2.25428737]
[1751537406436,0.01,109890.0,109880.0,2.1817132]
[1751537407143,0.01,109890.0,109880.0,1.9317132]
[1751537408438,0.01,109890.0,109880.0,1.75858802]
[1751537409744,0.01,109890.0,109880.0,1.56858802]
[1751537410043,0.01,109890.0,109880.0,1.70858802]
[1751537414443,1e-07,109890.0,109880.0,1.95428737]
[1751537414650,0.0965,109920.0,109910.0,0.1819058]
[1751537414851,0.0965,109920.0,109910.0,0.76484893]
[1751537415448,0.0965,109920.0,109910.0,0.80117397]
[1751537416055,0.0965,109920.0,109910.0,0.80217397]
[1751537416056,0.1035,109920.0,109910.0,0.80217397]
[1751537416254,0.0702,109920.0,109910.0,0.77493019]
[1751537416553,0.0722,109920.0,109910.0,0.83863891]
[1751537416753,0.0722,109920.0,109910.0,0.83521387]
[1751537417548,0.0682,109920.0,109910.0,0.83521387]
[1751537417748,0.0662,109920.0,109910.0,0.83521387]
[1751537417948,0.1008,109920.0,109910.0,0.83521387]
[1751537419255,0.1008,109920.0,109910.0,0.8715215]
[1751537419754,0.2826893,109920.0,109910.0,0.8715215]
[1751537420053,0.005,109920.0,109910.0,0.8715215]
[1751537420241,0.005,109920.0,109910.0,1.46831387]
[1751537420446,0.005,109920.0,109910.0,1.50461206]
[1751537420654,0.005,109920.0,109910.0,1.47897667]
[1751537421354,0.005,109920.0,109910.0,1.52897667]
[1751537422455,0.005,109920.0,109910.0,1.16897667]
[1751537422651,0.005,109920.0,109910.0,1.47897667]
[1751537425157,0.005,109920.0,109910.0,1.49545001]
[1751537426552,0.005,109920.0,109910.0,1.47724464]
[1751537426753,0.005,109920.0,109910.0,1.49545001]
[1751537427656,0.005,109920.0,109910.0,1.68666179]
[1751537427856,0.005,109920.0,109910.0,1.75923596]
[1751537428055,0.005,109920.0,109910.0,1.94119596]
[1751537428257,0.005,109920.0,109910.0,1.86862179]
[1751537428455,0.005,109920.0,109910.0,1.94119596]
[1751537429659,0.005,109920.0,109910.0,1.75923596]
[1751537430252,0.005,109920.0,109910.0,1.51353661]
[1751537430453,0.005,109920.0,109910.0,1.44096244]
[1751537431662,0.005,109920.0,109910.0,1.19526309]
[1751537431958,0.005,109920.0,109910.0,1.49536529]
[1751537432160,0.0686,109920.0,109910.0,1.48293661]
[1751537432347,0.1017,109920.0,109910.0,1.46476647]
[1751537432653,0.1017,109920.0,109910.0,1.46506436]
[1751537432848,0.1017,109920.0,109910.0,1.45440156]
[1751537435962,0.1017,109920.0,109910.0,1.45420964]
[1751537440365,0.1017,109920.0,109910.0,1.48630964]
[1751537442265,0.0368,109920.0,109910.0,1.73200899]
[1751537442567,0.005,109920.0,109910.0,1.75017913]
[1751537443456,0.25306085,109960.0,109950.0,0.1818397]
[1751537443660,0.60316247,109960.0,109950.0,0.72753905]
[1751537444368,0.42133937,109960.0,109950.0,0.72753905]
[1751537444564,0.60316247,109960.0,109950.0,0.72753905]
[1751537444765,0.64456247,109960.0,109950.0,0.72853905]
[1751537445266,0.46273937,109960.0,109950.0,0.72853905]
[1751537445467,0.64456247,109960.0,109950.0,0.75577874]
[1751537445667,0.71698193,109960.0,109950.0,0.76513912]
[1751537446075,0.72398193,109960.0,109950.0,0.76613912]
[1751537446265,0.54215883,109960.0,109950.0,0.76613912]
[1751537446465,0.54215883,109960.0,109950.0,0.80245871]
[1751537446863,0.4548,109960.0,109950.0,0.80245871]
[1751537447067,0.4548,109960.0,109950.0,0.82969841]
[1751537447571,0.4548,109960.0,109950.0,0.77521902]
[1751537447766,0.4478,109960.0,109950.0,0.77421902]
[1751537448178,0.6296232,109960.0,109950.0,0.76485864]
[1751537448375,0.6296232,109960.0,109950.0,0.72853905]
[1751537448671,0.6296232,109960.0,109950.0,0.76482664]
[1751537449471,0.6296232,109960.0,109950.0,0.77388014]
[1751537453462,0.6276232,109960.0,109950.0,0.77388014]
[1751537453664,0.6226232,109960.0,109950.0,0.77388014]
[1751537453864,0.6256232,109960.0,109950.0,0.77388014]
[1751537454673,0.6226232,109960.0,109950.0,0.77388014]
[1751537454871,0.6256232,109960.0,109950.0,0.77388014]
[1751537455876,0.6256232,109960.0,109950.0,0.76482664]
[1751537456479,0.6256232,109960.0,109950.0,0.79201808]
[1751537458078,0.6256232,109960.0,109950.0,0.76496198]
[1751537458479,0.4438,109960.0,109950.0,0.76496198]
[1751537461272,0.6256231,109960.0,109950.0,0.76496198]
[1751537464176,0.349,109960.0,109950.0,0.76496198]
[1751537464381,0.349,109960.0,109950.0,1.71385748]
[1751537464382,0.009,109960.0,109950.0,1.71385748]
[1751537464687,0.009,109960.0,109950.0,1.74605748]
[1751537465281,0.00786052,109960.0,109950.0,1.76420128]
[1751537466083,0.00786052,109960.0,109950.0,1.78060962]
[1751537469486,0.00786052,109960.0,109950.0,1.78092686]
[1751537470287,0.00786052,109960.0,109950.0,1.72649547]
[1751537470987,0.00786052,109960.0,109950.0,1.78088957]
[1751537471387,0.00786052,109960.0,109950.0,1.72649547]
[1751537474782,0.00786052,109960.0,109950.0,1.79907065]
[1751537476687,0.00786052,109960.0,109950.0,1.72649547]
[1751537477382,0.00786052,109960.0,109950.0,1.78094578]
[1751537481091,0.00786052,109960.0,109950.0,1.79907065]
[1751537481988,0.00786052,109960.0,109950.0,1.72649547]
[1751537482488,0.00786052,109960.0,109950.0,1.79907065]
[1751537482688,0.00786052,109960.0,109950.0,1.72649547]
[1751537482987,0.00786052,109960.0,109950.0,1.79907065]
[1751537483285,0.00786052,109960.0,109950.0,1.72649547]
[1751537483490,0.00786052,109960.0,109950.0,1.78094831]
[1751537483690,0.00786052,109960.0,109950.0,1.72649547]
[1751537484691,0.00786052,109960.0,109950.0,1.78095412]
[1751537486595,0.00786052,109960.0,109950.0,1.79907065]
[1751537494600,0.00786052,109960.0,109950.0,1.72649547]
[1751537495103,0.00786052,109960.0,109950.0,1.81721445]
[1751537498403,0.00786052,109960.0,109950.0,1.72649547]
[1751537499906,0.00786052,109960.0,109950.0,1.72631585]
[1751537500102,0.00686052,109960.0,109950.0,1.72631585]
[1751537500504,0.00286052,109960.0,109950.0,1.72531585]
[1751537500704,0.00586052,109960.0,109950.0,1.72531585]
[1751537505009,0.00586052,109960.0,109950.0,1.81603483]
[1751537509309,0.00586052,109960.0,109950.0,1.72361585]
[1751537510314,0.00586052,109960.0,109950.0,1.79636797]
[1751537510707,0.00586052,109960.0,109950.0,1.72361585]
[1751537511913,0.00586052,109960.0,109950.0,1.79636434]
[1751537515216,0.00586052,109960.0,109950.0,1.72361585]
[1751537515417,0.00586052,109960.0,109950.0,1.79636138]
[1751537515815,0.00586052,109960.0,109950.0,1.72361585]
[1751537517519,0.00586052,109960.0,109950.0,1.81433483]
[1751537521421,0.00586052,109960.0,109950.0,1.72361585]
[1751537523011,0.03876052,109960.0,109950.0,1.72361585]
[1751537523219,0.03876052,109960.0,109950.0,1.16590631]
[1751537523417,0.10236052,109960.0,109950.0,1.41590631]
[1751537523723,0.10236052,109960.0,109950.0,1.84223483]
[1751537523926,0.10236052,109960.0,109950.0,1.82426394]
[1751537524314,0.10236052,109960.0,109950.0,1.75151585]
[1751537526418,0.10236052,109960.0,109950.0,1.80603974]
[1751537532129,0.10236052,109960.0,109950.0,1.81669863]
[1751537532933,0.10236052,109960.0,109950.0,1.52419863]
[1751537537331,0.11236052,109960.0,109950.0,1.52419863]
[1751537538228,0.11236052,109960.0,109950.0,1.51353974]
[1751537538429,0.11236052,109960.0,109950.0,1.52419846]
[1751537539237,0.11236052,109960.0,109950.0,1.55549846]
[1751537540937,0.00586052,109960.0,109950.0,1.50097457]
[1751537541139,0.00586052,109960.0,109950.0,1.59526394]
[1751537541838,0.00586052,109960.0,109950.0,1.59487112]
[1751537542035,0.00586052,109960.0,109950.0,1.84048066]
[1751537542239,0.0928,109980.0,109970.0,0.1818066]
[1751537542439,0.0627,109980.0,109970.0,1.54383636]
[1751537542630,0.0627,109980.0,109970.0,1.62536703]
[1751537543234,0.0627,109980.0,109970.0,1.57088062]
[1751537543441,0.0627,109980.0,109970.0,1.58904276]
[1751537543842,0.0697,109980.0,109970.0,1.59004276]
[1751537544246,0.0697,109980.0,109970.0,1.54004276]
[1751537544648,0.0697,109980.0,109970.0,1.21004276]
[1751537544950,0.0697,109980.0,109970.0,1.59004276]
[1751537545246,0.0697,109980.0,109970.0,1.21004276]
[1751537545450,0.007,109980.0,109970.0,1.54048456]
[1751537545647,0.007,109980.0,109970.0,1.59048456]
[1751537545648,0.011,109980.0,109970.0,1.59048456]
[1751537548246,0.011,109980.0,109970.0,1.53599815]
[1751537549248,0.011,109980.0,109970.0,1.59042262]
[1751537551052,0.011,109980.0,109970.0,1.57042262]
[1751537553252,0.011,109980.0,109970.0,1.76160769]
[1751537553452,0.011,109980.0,109970.0,1.81599761]
[1751537553651,0.011,109980.0,109970.0,1.76160769]
[1751537554646,0.11321036,110000.0,109990.0,0.1817735]
[1751537554845,0.11321036,110000.0,109990.0,1.30924291]
[1751537555041,0.11321036,110000.0,109990.0,0.97924291]
[1751537555241,0.11321036,110000.0,109990.0,1.01064291]
[1751537555845,0.11321036,110000.0,109990.0,1.01164291]
[1751537556051,0.12021036,110000.0,109990.0,1.01164291]
[1751537556249,0.12521036,110000.0,109990.0,1.34164291]
[1751537556452,0.12521036,110000.0,109990.0,1.01164291]
[1751537557249,0.12521036,110000.0,109990.0,1.03881646]
[1751537558055,0.12521036,110000.0,109990.0,1.01164291]
[1751537558255,0.12521036,110000.0,109990.0,1.02074678]
[1751537558452,0.12521036,110000.0,109990.0,1.42094678]
[1751537558654,0.1102,110000.0,109990.0,1.42094678]
[1751537558852,0.1102,110000.0,109990.0,1.05094678]
[1751537559049,0.014,110000.0,109990.0,1.70655632]
[1751537559247,0.014,110000.0,109990.0,1.13094678]
[1751537559453,0.014,110000.0,109990.0,1.14907195]
[1751537559655,0.014,110000.0,109990.0,1.49907195]
[1751537559855,0.0461,110000.0,109990.0,1.11887195]
[1751537560151,0.0778,110000.0,109990.0,1.11887195]
[1751537560348,0.0778,110000.0,109990.0,1.15508324]
[1751537560864,0.0728,110000.0,109990.0,1.15508324]
[1751537561055,0.0738,110000.0,109990.0,1.15508324]
[1751537561760,0.0678,110000.0,109990.0,1.11787195]
[1751537562262,0.0678,110000.0,109990.0,1.13464537]
[1751537564157,0.0678,110000.0,109990.0,1.46464537]
[1751537564462,0.0678,110000.0,109990.0,1.47464537]
[1751537566565,0.0678,110000.0,109990.0,1.45647455]
[1751537569259,0.0361,110000.0,109990.0,1.45647455]
[1751537569558,0.0361,110000.0,109990.0,1.48647455]
[1751537569765,0.0361,110000.0,109990.0,1.54085005]
[1751537570356,0.0361,110000.0,109990.0,1.48647455]
[1751537571256,0.0361,110000.0,109990.0,1.54085005]
[1751537571456,0.004,110000.0,109990.0,1.54085005]
[1751537571954,0.004,110000.0,109990.0,1.78645959]
[1751537572155,0.004,110000.0,109990.0,1.75025491]
[1751537576665,0.004,110000.0,109990.0,1.76852795]
[1751537578867,0.004,110000.0,109990.0,1.52291841]
[1751537580364,0.004,110000.0,109990.0,1.69587941]
[1751537581668,0.003,110000.0,109990.0,1.69587941]
[1751537581865,0.003,110000.0,109990.0,1.69687941]
[1751537582671,0.002,110000.0,109990.0,1.69687941]
[1751537583372,0.0317,110020.0,110010.0,0.1817405]
[1751537583581,0.0317,110020.0,110010.0,1.51741838]
[1751537583870,0.0317,110020.0,110010.0,1.58051838]
[1751537584070,0.0636,110020.0,110010.0,1.24051838]
[1751537584274,0.0945,110020.0,110010.0,1.25722417]
[1751537584469,0.0965,110020.0,110010.0,1.25722417]
[1751537584774,0.0975,110020.0,110010.0,1.25722417]
[1751537584973,0.0965,110020.0,110010.0,1.57722417]
[1751537586875,0.0965,110020.0,110010.0,1.22482417]
[1751537587574,0.0965,110020.0,110010.0,1.60482417]
[1751537589277,0.0965,110020.0,110010.0,1.22482417]
[1751537589876,0.0965,110020.0,110010.0,1.56482417]
[1751537590377,0.0965,110020.0,110010.0,1.58294421]
[1751537592177,0.0965,110020.0,110010.0,1.56483141]
[1751537593680,0.0965,110020.0,110010.0,1.53483141]
[1751537596781,0.0965,110020.0,110010.0,1.55294421]
[1751537597079,0.0965,110020.0,110010.0,1.24294421]
[1751537597283,0.0965,110020.0,110010.0,1.55294421]
[1751537598685,0.0965,110020.0,110010.0,1.48036537]
[1751537599887,0.0656,110020.0,110010.0,1.48036537]
[1751537600086,0.0337,110020.0,110010.0,1.54536537]
[1751537601189,0.0337,110020.0,110010.0,1.61794421]
[1751537602188,0.0337,110020.0,110010.0,1.54536537]
[1751537602488,0.04213,110020.0,110010.0,1.62984246]
[1751537605290,0.04213,110020.0,110010.0,1.57536537]
[1751537606982,0.04213,110020.0,110010.0,1.64794421]
[1751537607789,0.01043,110020.0,110010.0,1.64794421]
[1751537608485,0.01043,110020.0,110010.0,1.89355375]
[1751537609891,0.02272,110030.0,110020.0,0.1817255]
[1751537610185,0.02272,110030.0,110020.0,1.8860373]
[1751537610489,0.002,110040.0,110030.0,0.19808136]
[1751537610689,0.002,110040.0,110030.0,1.86199316]
[1751537610992,0.002,110040.0,110030.0,1.78930998]
[1751537611290,0.002,110040.0,110030.0,1.86199316]
[1751537612189,0.004,110040.0,110030.0,1.86053326]
[1751537612390,0.004,110040.0,110030.0,1.61492372]
[1751537612984,0.006,110040.0,110030.0,1.66492372]
[1751537614396,0.006,110040.0,110030.0,1.91053326]
[1751537614998,0.006,110040.0,110030.0,1.91054666]
[1751537616292,0.006,110040.0,110030.0,1.66493712]
[1751537616492,0.006,110040.0,110030.0,1.71928307]
[1751537616791,0.006,110040.0,110030.0,1.96489261]
[1751537619690,0.005,110040.0,110030.0,1.96489261]
[1751537619881,0.003,110040.0,110030.0,1.96501349]
[1751537620088,0.004,110040.0,110030.0,1.96501349]
[1751537620387,0.004,110040.0,110030.0,2.00122392]
[1751537623190,0.004,110040.0,110030.0,1.94687797]
[1751537624291,0.004,110040.0,110030.0,1.70126843]
[1751537624888,0.0365,110040.0,110030.0,1.70126843]
[1751537625784,0.0365,110040.0,110030.0,1.99376843]
[1751537626491,0.0365,110040.0,110030.0,2.01190395]
[1751537627892,0.0365,110040.0,110030.0,1.45980395]
[1751537628191,0.099,110040.0,110030.0,1.42747407]
[1751537630797,0.099,110040.0,110030.0,0.93625499]
[1751537631006,0.099,110040.0,110030.0,1.42747407]
[1751537632503,0.099,110040.0,110030.0,1.44584118]
[1751537633200,0.099,110040.0,110030.0,1.79584118]
[1751537634104,0.099,110040.0,110030.0,1.44584118]
[1751537635105,0.099,110040.0,110030.0,1.79584118]
[1751537635901,0.099,110040.0,110030.0,1.44584118]
[1751537636102,0.099,110040.0,110030.0,1.79584118]
[1751537639311,0.099,110040.0,110030.0,1.843158]
[1751537639501,0.099,110040.0,110030.0,1.91584118]
[1751537641513,0.099,110040.0,110030.0,1.56584118]
[1751537642115,0.099,110040.0,110030.0,1.94584118]
[1751537642515,0.099,110040.0,110030.0,1.56584118]
[1751537642714,0.099,110040.0,110030.0,1.91584118]
[1751537642912,0.099,110040.0,110030.0,1.56584118]
[1751537643115,0.099,110040.0,110030.0,1.87933454]
[1751537643314,0.099,110040.0,110030.0,0.88366443]
[1751537643510,0.52630204,110040.0,110030.0,0.88366443]
[1751537643820,0.52630204,110040.0,110030.0,0.76409079]
[1751537644004,0.2806925,110040.0,110030.0,0.81859225]
[1751537644207,0.2806925,110040.0,110030.0,0.85492679]
[1751537644417,0.2806925,110040.0,110030.0,0.80042533]
[1751537646812,0.2806925,110040.0,110030.0,0.78365308]
[1751537648517,0.70806204,110040.0,110030.0,0.53804354]
[1751537648817,0.52630204,110040.0,110030.0,0.78365308]
[1751537649017,0.52630204,110040.0,110030.0,0.81086487]
[1751537649418,0.52630204,110040.0,110030.0,0.77453033]
[1751537649817,0.2806925,110040.0,110030.0,0.52892079]
[1751537652317,0.2806925,110040.0,110030.0,0.501709]
[1751537652520,0.2806925,110040.0,110030.0,0.52890877]
[1751537652715,0.70783604,110040.0,110030.0,0.52890877]
[1751537652918,0.4624525,110040.0,110030.0,0.52890877]
[1751537653113,0.70783604,110040.0,110030.0,0.52890877]
[1751537654215,0.4624525,110040.0,110030.0,0.52890877]
[1751537655920,0.70783604,110040.0,110030.0,0.52890877]
[1751537656521,0.70783604,110040.0,110030.0,0.501709]
[1751537658324,0.2806925,110040.0,110030.0,0.501709]
[1751537658519,0.4624525,110040.0,110030.0,0.501709]
[1751537659018,0.4624525,110040.0,110030.0,0.74709254]
[1751537661025,0.4624525,110040.0,110030.0,0.78029254]
[1751537661421,0.1856925,110040.0,110030.0,0.78029254]
[1751537661725,0.1856925,110040.0,110030.0,0.81289254]
[1751537665327,0.004,110040.0,110030.0,1.44827608]
[1751537665720,0.004,110040.0,110030.0,1.47547032]
[1751537665920,0.004,110040.0,110030.0,1.26642132]
[1751537666115,0.004,110040.0,110030.0,1.26641344]
[1751537666320,0.004,110040.0,110030.0,1.2300789]
[1751537666626,0.004,110040.0,110030.0,1.29372854]
[1751537667328,0.004,110040.0,110030.0,1.217394]
[1751537667521,0.004,110040.0,110030.0,1.25365422]
[1751537668126,0.004,110040.0,110030.0,0.92365422]
[1751537669929,0.004,110040.0,110030.0,1.23365422]
[1751537672020,0.004,110040.0,110030.0,0.90365422]
[1751537672426,0.004,110040.0,110030.0,0.867394]
[1751537672628,0.004,110040.0,110030.0,0.90366944]
[1751537673028,0.004,110040.0,110030.0,0.867394]
[1751537675532,0.43107604,110040.0,110030.0,0.53798298]
[1751537675731,0.52297604,110040.0,110030.0,0.56519462]
[1751537676328,0.2775925,110040.0,110030.0,0.52892064]
[1751537676527,0.2775925,110040.0,110030.0,0.56519462]
[1751537678221,0.2775925,110040.0,110030.0,0.52892064]
[1751537679327,0.52297604,110040.0,110030.0,0.52892064]
[1751537680232,0.2775925,110040.0,110030.0,0.52892064]
[1751537683037,0.2820925,110040.0,110030.0,0.52892064]
[1751537684234,0.52747604,110040.0,110030.0,0.52892064]
[1751537685337,0.52747604,110040.0,110030.0,0.501709]
[1751537685536,0.70923604,110040.0,110030.0,0.32]
[1751537685744,0.181709,110030.0,110020.0,0.24521112]
[1751537686040,0.50402569,110030.0,110020.0,0.5325401]
[1751537686939,0.50402569,110030.0,110020.0,0.2225401]
[1751537687240,0.50402569,110030.0,110020.0,0.19532846]
[1751537687634,0.50402569,110030.0,110020.0,0.50532846]
[1751537690247,0.50402569,110030.0,110020.0,0.50632846]
[1751537690539,0.50402569,110030.0,110020.0,0.21632846]
[1751537692546,0.51296606,110030.0,110020.0,0.21632846]
[1751537696752,0.51296606,110030.0,110020.0,0.21643591]
[1751537697954,0.51296606,110030.0,110020.0,0.21644518]
[1751537700455,0.51296606,110030.0,110020.0,0.29644518]
[1751537700857,0.51296606,110030.0,110020.0,0.29644812]
[1751537701159,0.51296606,110030.0,110020.0,0.19644812]
[1751537701359,0.51296606,110030.0,110020.0,0.27644812]
[1751537701754,0.51303479,110030.0,110020.0,0.52190039]
[1751537703656,0.51303479,110030.0,110020.0,0.27644812]
[1751537703857,0.51303479,110030.0,110020.0,0.19644812]
[1751537704256,0.51303479,110030.0,110020.0,0.27644812]
[1751537704455,0.51754479,110030.0,110020.0,0.27644812]
[1751537705658,0.51754479,110030.0,110020.0,0.09472262]
[1751537705856,0.51754479,110030.0,110020.0,0.27644812]
[1751537706560,0.51754479,110030.0,110020.0,0.19644812]
[1751537706758,0.51754479,110030.0,110020.0,0.26644812]
[1751537707455,0.51754479,110030.0,110020.0,0.19644812]
[1751537707662,0.51754479,110030.0,110020.0,0.26644812]
[1751537708163,0.51754479,110030.0,110020.0,0.19644812]
[1751537709360,0.51754479,110030.0,110020.0,0.19649668]
[1751537709756,0.51754479,110030.0,110010.0,0.02721164]
[1751537709757,0.58128806,110030.0,110010.0,0.02721164]
[1751537709957,1.01328231,110020.0,110010.0,0.04098282]
[1751537710169,0.1817585,110000.0,109990.0,0.36228065]
[1751537710359,0.67266304,110000.0,109990.0,0.5680067]
[1751537710663,0.67266304,110000.0,109990.0,0.5987067]
[1751537711059,0.70496304,110000.0,109990.0,0.5987067]
[1751537711259,0.70496304,110000.0,109990.0,0.4287067]
[1751537711564,0.73726304,110000.0,109990.0,0.4287067]
[1751537712062,0.73726304,110000.0,109990.0,0.4347067]
[1751537713066,0.73726304,110000.0,109990.0,0.3892641]
[1751537713568,0.73726304,110000.0,109990.0,0.3932641]
[1751537713768,0.49194451,110000.0,109990.0,0.3932641]
[1751537714368,0.45964451,110000.0,109990.0,0.3932641]
[1751537714860,0.2140585,110000.0,109990.0,0.3932641]
[1751537715268,0.2140585,110000.0,109990.0,0.3872641]
[1751537715770,0.45964451,110000.0,109990.0,0.3832641]
[1751537716464,0.2140585,110000.0,109990.0,0.3832641]
[1751537716658,0.22338488,110000.0,109990.0,0.3832641]
[1751537716971,0.54157665,110000.0,109990.0,0.3832641]
[1751537717270,0.57397665,110000.0,109990.0,0.1708]
[1751537717471,0.60707665,110000.0,109990.0,0.1708]
[1751537718364,0.60707665,110000.0,109990.0,0.14]
[1751537721574,0.1817916,109980.0,109970.0,0.26655908]
[1751537721776,0.44207969,109980.0,109970.0,0.53162038]
[1751537721980,0.50567969,109980.0,109970.0,0.53162038]
[1751537722176,0.50567969,109980.0,109970.0,0.54578734]
[1751537722378,0.50567969,109980.0,109970.0,0.26677506]
[1751537722675,0.50567969,109980.0,109970.0,0.55677506]
[1751537723275,0.50567969,109980.0,109970.0,0.26677506]
[1751537723679,0.50567969,109980.0,109970.0,0.26977506]
[1751537724085,0.50567969,109980.0,109970.0,0.23947506]
[1751537724287,0.50567969,109980.0,109970.0,0.24347506]
[1751537724586,0.53577969,109980.0,109970.0,0.03116696]
[1751537724788,0.7813657,109980.0,109970.0,0.03116696]
[1751537724984,0.88577969,109980.0,109970.0,0.03116696]
[1751537726478,0.88577969,109980.0,109970.0,0.32116696]
[1751537726679,0.88577969,109980.0,109970.0,0.02116696]
[1751537727788,0.88577969,109980.0,109970.0,0.02121248]
[1751537729691,0.88577969,109980.0,109970.0,0.28121248]
[1751537729988,0.88577969,109980.0,109970.0,0.02121248]
[1751537730691,0.89028969,109980.0,109970.0,0.02121248]
[1751537732393,0.89028969,109980.0,109970.0,0.52302058]
[1751537732590,0.89028969,109980.0,109970.0,0.20302058]
[1751537733478,0.89028969,109980.0,109970.0,0.23532058]
[1751537733790,0.89045553,109980.0,109970.0,0.23532058]
[1751537734091,0.89045553,109980.0,109970.0,0.30532058]
[1751537734291,0.89045553,109980.0,109970.0,0.05351248]
[1751537734586,0.89045553,109980.0,109970.0,0.31532058]
[1751537735088,0.89045553,109980.0,109970.0,0.54532058]
[1751537735288,0.89045553,109980.0,109970.0,0.31532058]
[1751537736194,0.89045553,109980.0,109970.0,0.55532058]
[1751537736493,0.89045553,109980.0,109970.0,0.31532058]
[1751537736996,0.89045553,109980.0,109970.0,0.31532048]
[1751537738191,0.87558761,109980.0,109970.0,0.31532048]
[1751537738389,0.89044159,109980.0,109970.0,0.31532048]
[1751537740197,0.89044159,109980.0,109970.0,0.13351238]
[1751537741083,0.89044159,109980.0,109970.0,0.10121238]
[1751537742293,0.89044159,109980.0,109970.0,0.21302048]
[1751537742505,0.89044159,109980.0,109970.0,0.50302048]
[1751537742694,0.89044159,109980.0,109970.0,0.21302048]
[1751537742890,0.64485558,109980.0,109970.0,0.21302048]
[1751537743088,0.89044159,109980.0,109970.0,0.24526869]
[1751537744293,0.89044159,109980.0,109970.0,0.06346059]
[1751537744594,0.89044159,109980.0,109970.0,0.24526869]
[1751537744894,0.89044159,109980.0,109970.0,0.06346059]
[1751537745295,0.89044159,109980.0,109970.0,0.24526869]